bitfinex/quotes_SOLUSD_20240624
["timestamp","ask_amount","ask_price","bid_price","bid_amount"]
[1719230081107,0.78406775,127.45,127.42,7.8476]
[1719230081632,0.78406775,127.45,127.41,27.4698]
[1719230081936,0.78406775,127.45,127.42,7.848]
[1719230082437,0.78406775,127.45,127.44,7.8468]
[1719230082650,0.78406775,127.45,127.44,127.4638]
[1719230082851,0.78406775,127.45,127.44,27.4638]
[1719230083829,0.78406775,127.45,127.44,19.617]
[1719230084147,0.78406775,127.45,127.44,27.4638]
[1719230084831,0.78406775,127.45,127.44,127.4638]
[1719230085544,0.78406775,127.45,127.44,27.4638]
[1719230088047,0.78406775,127.45,127.44,127.4638]
[1719230089328,0.78406775,127.45,127.44,127.6338]
[1719230090219,23.7669,127.55,127.47,200.0]
[1719230090419,15.9267,127.55,127.5,7.843]
[1719230090851,23.7668,127.55,127.49,7.8435]
[1719230091447,7.8407,127.54,127.48,27.4535]
[1719230091941,7.8413,127.53,127.48,19.6094]
[1719230092119,15.9267,127.55,127.48,19.6094]
[1719230093155,7.8408,127.54,127.48,27.4534]
[1719230093523,7.8414,127.53,127.48,19.6094]
[1719230093728,7.8415,127.53,127.47,7.8449]
[1719230093941,15.9267,127.55,127.48,27.4544]
[1719230094125,15.9267,127.55,127.47,200.0]
[1719230094324,15.9267,127.55,127.5,19.6077]
[1719230094523,7.8407,127.54,127.48,7.8441]
[1719230095225,23.767,127.55,127.49,7.8437]
[1719230095448,7.8406,127.54,127.49,7.8437]
[1719230095751,7.97340817,127.54,127.48,7.8442]
[1719230095946,7.97340817,127.54,127.49,7.8436]
[1719230095947,0.13280817,127.54,127.49,7.8436]
[1719230096350,7.97350817,127.54,127.48,7.844]
[1719230097250,7.97350817,127.54,127.47,219.611]
[1719230097251,7.8419,127.52,127.47,19.611]
[1719230097760,7.8414,127.53,127.47,27.4557]
[1719230098539,7.8414,127.53,127.48,7.8443]
[1719230098749,34.58370817,127.54,127.48,7.8443]
[1719230098960,0.13280817,127.54,127.49,19.6086]
[1719230099141,0.13280817,127.54,127.47,200.0]
[1719230099466,7.97370817,127.54,127.48,7.844]
[1719230099765,0.78443678,127.5,127.48,7.844]
[1719230099964,0.78443678,127.5,127.47,207.8447]
[1719230100153,0.78443678,127.5,127.47,107.8447]
[1719230100341,0.78443678,127.5,127.48,7.8442]
[1719230100542,0.78443678,127.5,127.48,27.4548]
[1719230100751,0.78443678,127.5,127.49,7.8437]
[1719230101157,0.78443678,127.5,127.48,27.4547]
[1719230102069,0.78443678,127.5,127.49,107.8437]
[1719230104965,0.78443678,127.5,127.48,19.6106]
[1719230106065,0.78443678,127.5,127.49,7.8437]
[1719230106271,0.78443678,127.5,127.49,107.8437]
[1719230106470,0.78443678,127.5,127.49,207.8437]
[1719230106970,0.78443678,127.5,127.49,227.8437]
[1719230107152,0.78443678,127.5,127.49,207.8437]
[1719230107866,0.78443678,127.5,127.49,230.3357]
[1719230108043,0.78443678,127.5,127.49,130.1657]
[1719230108368,0.78443678,127.5,127.49,100.0]
[1719230108571,0.78443678,127.5,127.47,107.8444]
[1719230108775,0.78443678,127.5,127.47,127.4567]
[1719230109348,0.78443678,127.5,127.49,27.453]
[1719230109547,0.78443678,127.5,127.49,19.6093]
[1719230109990,0.78443678,127.5,127.47,107.8448]
[1719230110351,0.78443678,127.5,127.48,7.8442]
[1719230110876,0.78443678,127.5,127.49,107.8437]
[1719230116148,0.78443678,127.5,127.49,207.8437]
[1719230117168,0.78443678,127.5,127.49,227.8437]
[1719230119756,0.78443678,127.5,127.49,228.1837]
[1719230120555,0.78443678,127.5,127.49,227.8437]
[1719230120754,0.78443678,127.5,127.49,236.7137]
[1719230120974,0.78443678,127.5,127.49,227.8437]
[1719230121173,0.78443678,127.5,127.49,236.7137]
[1719230121377,0.78443678,127.5,127.49,227.8437]
[1719230121566,0.78443678,127.5,127.49,236.7137]
[1719230121879,0.78443678,127.5,127.48,19.6101]
[1719230122077,0.78443678,127.5,127.49,7.8437]
[1719230122956,0.78443678,127.5,127.49,116.7137]
[1719230123176,0.78443678,127.5,127.49,216.7137]
[1719230124488,0.78443678,127.5,127.49,237.0537]
[1719230125861,0.78443678,127.5,127.49,284.2037]
[1719230127193,8.87,127.56,127.53,7.841]
[1719230127366,16.3556,127.57,127.54,7.8405]
[1719230127567,8.87,127.56,127.54,7.8405]
[1719230127958,16.3556,127.57,127.54,7.8405]
[1719230128163,0.748662,127.59,127.55,7.8398]
[1719230128383,8.87,127.57,127.54,27.442]
[1719230128901,8.87,127.57,127.55,7.8398]
[1719230129396,8.87,127.57,127.54,127.4421]
[1719230129598,0.748662,127.59,127.54,128.4716]
[1719230129767,8.87,127.58,127.55,7.8396]
[1719230130573,8.87,127.57,127.55,7.8396]
[1719230130985,8.87,127.58,127.55,7.8396]
[1719230131490,8.87,127.57,127.54,127.4418]
[1719230131784,0.748662,127.59,127.54,127.442]
[1719230131972,0.748662,127.59,127.55,7.8398]
[1719230132176,8.87,127.57,127.54,127.442]
[1719230132383,8.87,127.57,127.55,7.84]
[1719230132588,0.748662,127.59,127.55,7.84]
[1719230132969,8.87,127.57,127.55,7.84]
[1719230133585,0.748662,127.59,127.54,127.4421]
[1719230133785,8.87,127.57,127.54,119.6016]
[1719230134090,8.87,127.57,127.55,7.84]
[1719230134292,8.87,127.57,127.54,127.442]
[1719230134593,8.87,127.55,127.52,7.8418]
[1719230134886,8.87,127.54,127.48,119.6096]
[1719230135084,8.87,127.53,127.51,7.8421]
[1719230135299,8.87,127.54,127.5,119.6076]
[1719230136181,0.748662,127.59,127.51,100.0]
[1719230136486,0.748662,127.59,127.53,100.0]
[1719230136793,8.87,127.57,127.54,19.6016]
[1719230136971,8.87,127.56,127.53,7.841]
[1719230137581,0.748662,127.59,127.52,100.0]
[1719230137770,8.87,127.56,127.54,7.8405]
[1719230138181,7.8383,127.58,127.53,19.6031]
[1719230138366,8.87,127.56,127.53,27.444]
[1719230138571,8.87,127.56,127.54,7.8406]
[1719230139000,8.87,127.56,127.55,27.4401]
[1719230139196,8.87,127.57,127.55,19.6001]
[1719230139405,0.748662,127.59,127.55,19.6001]
[1719230139580,0.78400628,127.56,127.53,7.8411]
[1719230140013,8.87,127.54,127.49,7.8433]
[1719230140295,52.54020628,127.56,127.51,7.8424]
[1719230140296,17.06020628,127.56,127.51,7.8424]
[1719230140507,8.87,127.54,127.51,7.8424]
[1719230140673,47.34,127.69,127.51,17.8421]
[1719230140873,8.87,127.56,127.52,27.4464]
[1719230141076,17.060206,127.64,127.55,7.8399]
[1719230141382,10.02166384,127.68,127.55,19.5997]
[1719230141383,8.87,127.57,127.55,19.5997]
[1719230141978,17.060206,127.67,127.55,37.4392]
[1719230142275,8.87,127.58,127.55,29.5997]
[1719230142493,8.87,127.58,127.55,19.5997]
[1719230142679,8.87,127.58,127.55,29.5997]
[1719230142879,8.87,127.58,127.55,10.0]
[1719230143087,8.87,127.58,127.55,17.8399]
[1719230143287,17.060206,127.67,127.56,7.8392]
[1719230143506,8.87,127.58,127.56,7.8392]
[1719230144089,8.87,127.59,127.57,7.8387]
[1719230144398,11.2846,127.62,127.58,7.8382]
[1719230144596,11.2846,127.62,127.54,10.0]
[1719230144790,11.2846,127.62,127.57,19.5964]
[1719230144791,8.87,127.6,127.57,19.5964]
[1719230144981,8.87,127.61,127.56,118.87]
[1719230145178,11.2846,127.62,127.56,110.0]
[1719230145384,8.87,127.6,127.56,10.0]
[1719230145683,8.87,127.6,127.57,19.597]
[1719230145884,11.2846,127.62,127.58,17.8378]
[1719230146079,20.1546,127.62,127.58,17.8378]
[1719230146301,11.2846,127.66,127.61,7.8359]
[1719230146502,8.87,127.65,127.6,18.87]
[1719230146685,8.87,127.65,127.6,26.7069]
[1719230146880,11.2846,127.66,127.6,38.4624]
[1719230147088,8.87,127.65,127.62,7.8357]
[1719230147299,11.2846,127.66,127.6,210.0]
[1719230147507,8.87,127.66,127.63,7.8348]
[1719230147694,11.2846,127.7,127.63,7.8348]
[1719230147906,8.87,127.66,127.63,10.0]
[1719230148089,11.2846,127.7,127.62,27.4239]
[1719230148289,8.87,127.66,127.63,7.835]
[1719230148488,8.87,127.66,127.63,17.835]
[1719230148689,11.2846,127.7,127.63,10.0]
[1719230148889,11.2846,127.7,127.62,27.4241]
[1719230149182,11.2846,127.7,127.62,19.5884]
[1719230149478,26.57,127.69,127.61,10.0]
[1719230151007,37.8546,127.66,127.6,19.5916]
[1719230151189,11.2846,127.66,127.61,7.8358]
[1719230151389,11.2846,127.66,127.6,27.4283]
[1719230151587,11.2846,127.66,127.6,19.5916]
[1719230151897,11.2846,127.66,127.6,27.4284]
[1719230152289,11.2846,127.66,127.61,7.8362]
[1719230152703,11.2846,127.66,127.61,10.0]
[1719230153500,11.2846,127.66,127.64,7.8339]
[1719230153707,11.2846,127.7,127.62,7.8355]
[1719230154009,11.2846,127.7,127.61,37.4255]
[1719230154210,26.57,127.68,127.59,10.0]
[1719230154387,26.57,127.68,127.6,7.8367]
[1719230154709,26.57,127.68,127.59,29.5925]
[1719230155086,26.57,127.68,127.59,37.4298]
[1719230155297,11.2846,127.67,127.59,10.0]
[1719230155814,11.2846,127.67,127.59,17.8375]
[1719230156401,11.2846,127.67,127.59,10.0]
[1719230156998,26.57,127.66,127.59,10.0]
[1719230157883,11.2846,127.67,127.6,7.8366]
[1719230158085,11.2846,127.67,127.61,10.0]
[1719230159013,11.2846,127.67,127.61,17.8363]
[1719230159213,11.2846,127.67,127.61,10.0]
[1719230159615,0.78363765,127.62,127.61,10.0]
[1719230160503,0.78363765,127.62,127.57,10.0]
[1719230161015,0.78363765,127.62,127.58,7.8382]
[1719230161395,0.78363765,127.62,127.57,17.8385]
[1719230161593,0.78363765,127.62,127.57,10.0]
[1719230161914,11.2846,127.61,127.54,34.3862]
[1719230162117,37.8546,127.61,127.54,10.0]
[1719230162313,37.8546,127.61,127.53,7.8411]
[1719230162720,37.8546,127.61,127.54,7.8406]
[1719230162901,37.8546,127.61,127.52,25.9037]
[1719230163297,37.8546,127.61,127.53,7.8408]
[1719230163496,1.91,127.59,127.53,7.8408]
[1719230164015,1.91,127.59,127.54,7.8406]
[1719230164196,1.91,127.59,127.52,19.6045]
[1719230164401,1.91,127.59,127.51,7.8423]
[1719230164722,28.48,127.59,127.51,7.8425]
[1719230165024,28.48,127.59,127.51,17.8425]
[1719230165205,28.48,127.59,127.51,7.8425]
[1719230165521,28.48,127.59,127.51,17.8425]
[1719230165835,28.48,127.59,127.5,7.8427]
[1719230166002,28.48,127.59,127.51,7.8421]
[1719230166201,28.48,127.59,127.5,19.6077]
[1719230166405,28.48,127.59,127.5,27.4506]
[1719230166622,28.48,127.59,127.51,7.8424]
[1719230167002,28.48,127.59,127.5,27.4505]
[1719230167216,28.48,127.59,127.51,7.8423]
[1719230167403,28.48,127.59,127.52,7.8417]
[1719230167812,28.48,127.59,127.51,37.4472]
[1719230168015,28.48,127.59,127.52,1.54591097]
[1719230168224,28.48,127.59,127.49,24.5079]
[1719230168404,26.57,127.57,127.49,17.8435]
[1719230168807,26.57,127.57,127.5,7.843]
[1719230169006,26.57,127.57,127.49,17.8435]
[1719230169230,26.57,127.57,127.5,7.843]
[1719230169430,11.2846,127.6,127.5,7.8429]
[1719230169609,26.57,127.57,127.49,10.0]
[1719230170830,26.57,127.57,127.49,17.8436]
[1719230171332,26.57,127.57,127.49,29.608]
[1719230171828,26.57,127.57,127.5,7.8429]
[1719230172034,26.57,127.57,127.49,37.4514]
[1719230172423,26.57,127.55,127.47,10.0]
[1719230172623,26.57,127.53,127.46,19.6126]
[1719230172927,26.57,127.53,127.45,7.8459]
[1719230174525,26.57,127.53,127.44,37.4633]
[1719230174727,11.2846,127.52,127.44,37.4633]
[1719230174936,11.2846,127.52,127.45,7.8461]
[1719230175236,11.2846,127.52,127.46,7.8453]
[1719230175420,11.2846,127.52,127.47,7.8447]
[1719230176133,11.2846,127.52,127.46,7.8454]
[1719230176459,11.2846,127.52,127.45,27.4599]
[1719230176808,11.2846,127.52,127.44,10.0]
[1719230177023,11.2846,127.52,127.47,7.8447]
[1719230177416,11.2846,127.52,127.46,110.0]
[1719230177627,26.57,127.57,127.48,10.0]
[1719230177935,26.57,127.57,127.51,7.8423]
[1719230178234,26.57,127.57,127.5,19.607]
[1719230179537,26.57,127.57,127.49,7.8434]
[1719230179742,0.78363765,127.51,127.49,7.8434]
[1719230179911,0.78363765,127.51,127.48,37.455]
[1719230180111,0.78363765,127.51,127.49,7.8432]
[1719230180539,0.78363765,127.51,127.5,7.8431]
[1719230180912,0.78363765,127.51,127.5,17.8431]
[1719230181914,0.78363765,127.51,127.5,117.8431]
[1719230183740,0.78363765,127.51,127.5,137.8431]
[1719230183974,12.068,127.62,127.53,210.0]
[1719230184118,12.068,127.62,127.55,10.0]
[1719230184315,12.044,127.62,127.55,10.0]
[1719230184719,12.044,127.62,127.57,10.0]
[1719230185118,12.044,127.62,127.55,37.4382]
[1719230185327,12.044,127.62,127.56,7.8392]
[1719230185713,12.044,127.62,127.55,29.5986]
[1719230186016,38.614,127.62,127.53,37.4441]
[1719230186437,38.614,127.62,127.54,7.8405]
[1719230187639,38.614,127.62,127.53,10.0]
[1719230187940,26.57,127.6,127.53,10.0]
[1719230188729,26.57,127.6,127.51,17.8421]
[1719230189237,26.57,127.6,127.53,10.0]
[1719230189934,26.57,127.6,127.52,27.4464]
[1719230190122,26.57,127.6,127.52,19.6047]
[1719230190733,26.57,127.6,127.53,10.0]
[1719230191619,12.044,127.59,127.51,10.0]
[1719230191841,26.57,127.58,127.51,10.0]
[1719230192032,26.57,127.58,127.5,7.843]
[1719230192340,26.57,127.58,127.49,29.6078]
[1719230192341,26.57,127.58,127.49,37.4513]
[1719230192524,26.57,127.54,127.47,29.6124]
[1719230192841,12.044,127.53,127.47,29.6124]
[1719230194325,12.044,127.53,127.47,37.4573]
[1719230195536,12.044,127.53,127.48,7.8443]
[1719230195738,12.044,127.53,127.47,37.4571]
[1719230196137,12.044,127.53,127.48,7.8443]
[1719230196936,12.044,127.53,127.49,27.4526]
[1719230197148,38.614,127.56,127.5,7.843]
[1719230197552,12.044,127.56,127.52,7.8418]
[1719230197851,12.044,127.56,127.51,19.6062]
[1719230197852,12.044,127.56,127.51,27.4484]
[1719230198239,12.044,127.56,127.51,37.4484]
[1719230198974,12.044,127.56,127.51,27.4484]
[1719230199330,12.044,127.56,127.51,37.4484]
[1719230199633,0.78425222,127.53,127.51,27.4484]
[1719230199838,0.78425222,127.53,127.51,29.6062]
[1719230200443,0.78425222,127.53,127.51,10.0]
[1719230200646,0.78425222,127.53,127.5,7.8429]
[1719230201235,0.78425222,127.53,127.51,10.0]
[1719230201443,0.78425222,127.53,127.5,7.8429]
[1719230201629,0.78425222,127.53,127.49,37.4526]
[1719230201836,0.78425222,127.53,127.48,7.844]
[1719230203064,27.35425222,127.53,127.47,10.0]
[1719230203232,27.35425222,127.53,127.46,7.8454]
[1719230203743,27.35425222,127.53,127.47,7.8449]
[1719230204422,27.35425222,127.53,127.46,19.6125]
[1719230204626,27.35425222,127.53,127.47,7.8446]
[1719230205552,27.35425222,127.53,127.46,19.6125]
[1719230205850,27.35425222,127.53,127.48,7.8443]
[1719230206052,27.35425222,127.53,127.46,19.6125]
[1719230206350,27.35425222,127.53,127.47,7.8446]
[1719230207038,27.35425222,127.53,127.48,7.8443]
[1719230207443,27.35425222,127.53,127.47,17.8447]
[1719230207853,27.35425222,127.53,127.48,7.8441]
[1719230208444,27.35425222,127.53,127.45,17.846]
[1719230208647,27.35425222,127.53,127.45,7.8462]
[1719230209138,27.35425222,127.53,127.45,19.615]
[1719230209339,0.78425222,127.53,127.44,110.0]
[1719230209644,0.78425222,127.53,127.47,19.6123]
[1719230210458,0.78425222,127.53,127.46,10.0]
[1719230210872,27.35425222,127.53,127.44,37.4633]
[1719230211660,27.35425222,127.53,127.46,10.0]
[1719230212060,12.044,127.52,127.46,10.0]
[1719230214489,12.044,127.52,127.44,37.4633]
[1719230214783,12.044,127.52,127.45,7.846]
[1719230216287,38.614,127.52,127.45,7.846]
[1719230216788,38.614,127.52,127.44,29.6166]
[1719230217081,38.614,127.52,127.44,10.0]
[1719230217493,26.57,127.5,127.44,29.6166]
[1719230217664,26.57,127.5,127.45,7.8459]
[1719230217860,26.57,127.5,127.46,7.8455]
[1719230218057,38.614,127.52,127.46,7.8455]
[1719230218381,38.614,127.52,127.45,7.8459]
[1719230219183,38.614,127.52,127.46,10.0]
[1719230219671,0.78425222,127.47,127.46,10.0]
[1719230220788,0.78425222,127.47,127.44,10.0]
[1719230220992,0.78425222,127.47,127.42,10.0]
[1719230221159,0.78425222,127.47,127.4,33.1007]
[1719230221520,0.78425222,127.47,127.42,10.0]
[1719230222067,0.78425222,127.47,127.38,10.0]
[1719230222270,26.57,127.46,127.38,17.8505]
[1719230222680,26.57,127.46,127.4,10.0]
[1719230223272,26.57,127.44,127.36,10.0]
[1719230223674,26.57,127.41,127.36,10.0]
[1719230224069,26.57,127.41,127.34,10.0]
[1719230224269,26.57,127.41,127.34,17.8528]
[1719230224763,38.614,127.41,127.34,17.8528]
[1719230225170,38.614,127.41,127.34,10.0]
[1719230225675,26.57,127.39,127.34,10.0]
[1719230227385,12.044,127.41,127.34,10.0]
[1719230227590,12.044,127.41,127.34,29.6321]
[1719230227782,12.044,127.41,127.34,37.4849]
[1719230228894,34.14414692,127.44,127.36,10.0]
[1719230228895,7.57414692,127.44,127.36,10.0]
[1719230229070,12.044,127.44,127.39,7.8495]
[1719230229271,12.044,127.44,127.38,10.0]
[1719230229486,12.044,127.44,127.38,37.4764]
[1719230229870,12.044,127.44,127.38,29.6261]
[1719230231399,12.044,127.44,127.38,37.4764]
[1719230232081,12.044,127.44,127.38,10.0]
[1719230232284,38.614,127.44,127.36,17.8515]
[1719230232583,38.614,127.44,127.36,10.0]
[1719230232983,38.614,127.44,127.36,17.8517]
[1719230233292,38.614,127.44,127.38,10.0]
[1719230233492,12.044,127.44,127.4,10.0]
[1719230233687,0.78425222,127.47,127.42,10.0]
[1719230234012,0.78425222,127.47,127.41,7.8481]
[1719230234575,0.78425222,127.47,127.4,37.472]
[1719230235198,0.78425222,127.47,127.4,10.0]
[1719230236090,27.35425222,127.47,127.38,10.0]
[1719230236290,26.57,127.45,127.38,10.0]
[1719230236476,26.57,127.45,127.38,17.8503]
[1719230236983,26.57,127.45,127.38,37.4765]
[1719230237397,26.57,127.45,127.38,29.6262]
[1719230237898,26.57,127.45,127.38,37.4767]
[1719230238102,26.57,127.45,127.38,10.0]
[1719230238601,26.57,127.45,127.38,17.8504]
[1719230239200,26.57,127.45,127.39,7.8498]
[1719230239380,27.35425222,127.47,127.4,10.0]
[1719230239694,12.044,127.48,127.42,10.0]
[1719230240475,12.044,127.48,127.42,17.848]
[1719230240686,12.044,127.48,127.42,10.0]
[1719230240884,12.044,127.48,127.4,37.472]
[1719230241088,12.044,127.48,127.4,29.6228]
[1719230241805,26.57,127.45,127.38,10.0]
[1719230242707,26.57,127.45,127.37,7.851]
[1719230242905,26.57,127.45,127.36,23.954]
[1719230243205,26.57,127.45,127.38,10.0]
[1719230243405,26.57,127.45,127.37,19.6278]
[1719230243610,26.57,127.45,127.38,7.8501]
[1719230244183,26.57,127.45,127.38,17.8501]
[1719230245509,12.044,127.44,127.38,10.0]
[1719230245890,26.57,127.43,127.36,10.0]
[1719230246091,26.57,127.43,127.36,17.8516]
[1719230246497,26.57,127.43,127.37,7.851]
[1719230246685,12.044,127.44,127.38,7.8499]
[1719230246885,38.614,127.44,127.37,27.4783]
[1719230248097,12.044,127.44,127.38,17.8503]
[1719230248296,12.044,127.44,127.4,10.0]
[1719230248508,12.044,127.44,127.38,17.8501]
[1719230248916,12.044,127.44,127.4,10.0]
[1719230249310,38.614,127.47,127.4,10.0]
[1719230249915,26.57,127.45,127.38,10.0]
[1719230250299,26.57,127.45,127.36,37.4793]
[1719230250501,26.57,127.43,127.36,29.628]
[1719230250699,12.044,127.42,127.36,29.628]
[1719230251002,12.044,127.42,127.37,7.8511]
[1719230251208,12.044,127.42,127.38,10.0]
[1719230252615,38.614,127.45,127.38,10.0]
[1719230252818,12.044,127.45,127.42,7.8476]
[1719230252997,12.044,127.45,127.41,19.6215]
[1719230253618,12.044,127.45,127.38,29.6254]
[1719230254104,12.044,127.45,127.39,7.8497]
[1719230254506,12.044,127.45,127.4,10.0]
[1719230254717,12.044,127.45,127.4,17.8492]
[1719230255017,12.044,127.45,127.41,7.8484]
[1719230255819,12.044,127.45,127.4,37.4722]
[1719230255997,12.044,127.45,127.41,7.8486]
[1719230256324,38.614,127.47,127.4,37.472]
[1719230256818,38.614,127.47,127.41,7.8484]
[1719230257020,38.614,127.47,127.42,7.848]
[1719230257324,12.044,127.47,127.43,7.8471]
[1719230257533,26.57,127.5,127.44,7.8468]
[1719230258105,26.57,127.5,127.45,10.0]
[1719230259200,26.57,127.5,127.42,17.8479]
[1719230259407,26.57,127.5,127.42,10.0]
[1719230259608,0.78480616,127.43,127.42,17.848]
[1719230260226,0.78480616,127.43,127.42,10.0]
[1719230260404,0.78480616,127.43,127.4,10.0]
[1719230260809,0.78480616,127.43,127.42,7.848]
[1719230261128,0.78480616,127.43,127.41,27.4698]
[1719230261524,0.78480616,127.43,127.42,10.0]
[1719230261823,0.78480616,127.43,127.41,27.4698]
[1719230262023,0.78480616,127.43,127.42,10.0]
[1719230262201,0.78480616,127.43,127.42,7.848]
[1719230263030,0.78480616,127.43,127.42,17.848]
[1719230264629,0.78480616,127.43,127.42,10.0]
[1719230265539,0.78480616,127.43,127.4,37.472]
[1719230265833,0.78480616,127.43,127.4,29.6231]
[1719230266002,0.78480616,127.43,127.4,10.0]
[1719230267245,0.78480616,127.43,127.4,17.8491]
[1719230267734,0.78480616,127.43,127.4,10.0]
[1719230269110,12.044,127.42,127.38,10.0]
[1719230269316,12.044,127.42,127.36,37.4805]
[1719230269744,12.044,127.42,127.37,7.851]
[1719230270615,38.614,127.42,127.36,10.0]
[1719230271933,38.614,127.42,127.35,7.8523]
[1719230272145,26.57,127.4,127.32,10.0]
[1719230272346,26.57,127.4,127.33,7.8532]
[1719230272813,26.57,127.4,127.32,17.8539]
[1719230273131,26.57,127.4,127.32,10.0]
[1719230273334,26.57,127.38,127.32,10.0]
[1719230273546,26.57,127.38,127.32,17.8541]
[1719230274532,12.044,127.37,127.32,10.0]
[1719230278026,26.57,127.36,127.32,10.0]
[1719230278222,26.57,127.36,127.3,10.0]
[1719230279115,12.044,127.37,127.27,27.5002]
[1719230279116,26.57,127.34,127.27,27.5002]
[1719230279739,26.57,127.34,127.28,17.8562]
[1719230280313,26.57,127.34,127.27,27.5002]
[1719230280729,26.57,127.34,127.28,10.0]
[1719230281651,26.57,127.34,127.28,17.8565]
[1719230282145,26.57,127.34,127.28,10.0]
[1719230282320,26.57,127.34,127.27,27.5002]
[1719230282721,26.57,127.34,127.28,10.0]
[1719230283249,26.57,127.34,127.28,17.8566]
[1719230283418,26.57,127.34,127.27,27.5002]
[1719230283618,26.57,127.34,127.28,10.0]
[1719230283818,26.57,127.34,127.28,17.8566]
[1719230284225,26.57,127.34,127.28,7.8566]
[1719230284426,26.57,127.34,127.27,37.5003]
[1719230286320,26.57,127.34,127.29,10.0]
[1719230288244,19.74728659,127.37,127.31,17.8547]
[1719230288245,26.57,127.36,127.31,17.8547]
[1719230288448,12.044,127.37,127.31,29.6369]
[1719230288622,12.044,127.37,127.29,23.906]
[1719230288962,12.044,127.37,127.29,10.0]
[1719230288963,26.57,127.35,127.29,10.0]
[1719230299645,0.78560767,127.31,127.29,10.0]
[1719230300834,0.78560767,127.31,127.29,17.8559]
[1719230301967,0.78560767,127.31,127.29,10.0]
[1719230302263,0.78560767,127.31,127.3,27.494]
[1719230302433,0.78560767,127.31,127.3,43.0738]
[1719230303344,0.78560767,127.31,127.3,143.0738]
[1719230304244,0.78560767,127.31,127.3,149.5186]
[1719230305474,0.78560767,127.31,127.3,49.5186]
[1719230306056,0.78560767,127.31,127.29,10.0]
[1719230306938,0.78560767,127.31,127.27,16.0766]
[1719230307141,0.78560767,127.31,127.26,7.8578]
[1719230307352,0.78560767,127.31,127.26,7.8577]
[1719230307854,0.78560767,127.31,127.26,17.8577]
[1719230308251,0.78560767,127.31,127.26,10.0]
[1719230309045,0.78560767,127.31,127.26,17.8579]
[1719230309559,0.78560767,127.31,127.27,7.8573]
[1719230309760,0.78560767,127.31,127.28,7.8563]
[1719230310055,0.78560767,127.31,127.28,19.6415]
[1719230310259,0.78560767,127.31,127.26,10.0]
[1719230310632,0.78560767,127.31,127.26,29.6446]
[1719230310858,0.78560767,127.31,127.26,37.5021]
[1719230311670,0.78560767,127.31,127.26,29.6446]
[1719230312338,0.78560767,127.31,127.26,37.5019]
[1719230313455,0.78560767,127.31,127.26,29.6446]
[1719230313759,0.78560767,127.31,127.26,37.5025]
[1719230314164,0.78560767,127.31,127.28,10.0]
[1719230315782,0.78560767,127.31,127.26,29.6446]
[1719230316642,8.91,127.28,127.26,29.6446]
[1719230316856,8.91,127.28,127.26,10.0]
[1719230317058,8.91,127.29,127.26,17.8578]
[1719230317365,8.91,127.28,127.26,10.0]
[1719230317664,8.91,127.27,127.26,10.0]
[1719230318948,8.91,127.28,127.26,10.0]